bitfinex-derivatives/quotes_SOLF0:USTF0_20241012
["timestamp","ask_amount","ask_price","bid_price","bid_amount"]
[1728713262183,3.4271,145.93,145.91,4.97009464]
[1728713262387,3.4271,145.93,145.89,11.868]
[1728713262592,3.4271,145.93,145.9,4.97026653]
[1728713262790,3.4271,145.93,145.91,4.97026653]
[1728713263090,3.4271,145.93,145.9,8.44]
[1728713263293,3.4271,145.93,145.91,4.97048698]
[1728713263493,3.4271,145.93,145.9,8.44]
[1728713263785,3.4271,145.93,145.91,4.97048554]
[1728713263989,3.4271,145.93,145.9,8.44]
[1728713264389,3.4271,145.93,145.91,4.96992967]
[1728713264692,3.4273,145.92,145.9,8.44]
[1728713264890,3.4273,145.92,145.89,3.428]
[1728713264891,3.4273,145.92,145.91,4.97012542]
[1728713265079,3.4273,145.92,145.89,11.868]
[1728713265286,3.4273,145.92,145.9,4.97016365]
[1728713265490,3.4273,145.92,145.91,4.97042581]
[1728713266294,0.12502,145.97,145.91,4.97042581]
[1728713266594,3.4272,145.93,145.91,8.44]
[1728713271289,3.4272,145.93,145.92,4.97230459]
[1728713276497,3.4272,145.93,145.9,11.8678]
[1728713276904,3.4272,145.93,145.91,4.97513323]
[1728713277202,3.4272,145.93,145.92,4.97513323]
[1728713280296,3.4272,145.93,145.9,11.8678]
[1728713280500,3.4272,145.93,145.92,4.97715811]
[1728713280893,0.12502,145.97,145.92,4.97715811]
[1728713281200,0.12502,145.97,145.93,4.97738479]
[1728713281402,8.56502,145.97,145.92,3.3455331]
[1728713281597,3.4268,145.95,145.93,4.97738534]
[1728713281800,3.4268,145.95,145.92,3.3455331]
[1728713282098,8.56502,145.97,145.93,4.97738535]
[1728713282300,0.12502,145.97,145.94,3.343476]
[1728713282500,0.12502,145.97,145.92,8.44]
[1728713282894,0.12502,145.97,145.93,4.97725707]
[1728713283090,0.12502,145.97,145.94,4.97725707]
[1728713283304,3.55132,145.97,145.93,6.82679289]
[1728713283701,3.55132,145.97,145.94,4.977402]
[1728713283900,3.55132,145.97,145.93,6.82679289]
[1728713284094,3.55132,145.97,145.94,4.97732174]
[1728713284297,3.55132,145.97,145.95,4.97732174]
[1728713284504,3.55132,145.97,145.93,6.82679289]
[1728713284799,3.55132,145.97,145.94,4.97808571]
[1728713285006,3.55132,145.97,145.95,4.97808571]
[1728713285303,3.55132,145.97,145.93,6.82679289]
[1728713285502,3.55132,145.97,145.94,4.97899717]
[1728713285808,3.4264,145.96,145.95,4.97899717]
[1728713286102,3.4264,145.96,145.93,6.82679289]
[1728713286300,3.4264,145.96,145.93,3.4271]
[1728713286517,3.4264,145.96,145.94,4.97982844]
[1728713287006,3.4264,145.96,145.95,4.97982844]
[1728713287903,3.4264,145.96,145.93,3.37443582]
[1728713288104,3.4264,145.96,145.94,4.9814387]
[1728713288306,3.4264,145.96,145.93,3.37443582]
[1728713288502,3.4264,145.96,145.94,4.98184397]
[1728713288710,3.4264,145.96,145.93,3.37443582]
[1728713289001,3.4264,145.96,145.94,4.98175904]
[1728713289198,3.4264,145.96,145.93,3.37443582]
[1728713289395,3.4264,145.96,145.94,4.9819278]
[1728713289601,8.56502,145.97,145.86,4.0238]
[1728713289903,3.427,145.94,145.91,8.44]
[1728713290308,3.427,145.94,145.92,4.98332116]
[1728713290608,3.427,145.94,145.93,4.98332116]
[1728713293308,3.427,145.94,145.91,15.37252597]
[1728713293512,3.427,145.94,145.93,4.98369129]
[1728713300318,8.44,145.95,145.91,11.94502597]
[1728713300516,3.4271,145.93,145.92,4.98368838]
[1728713300712,3.4271,145.93,145.91,11.94502597]
[1728713300914,3.4271,145.93,145.92,4.98368838]
[1728713305613,8.44,145.93,145.88,8.44]
[1728713305819,8.44,145.93,145.89,4.98369923]
[1728713305820,3.4275,145.92,145.89,4.98369923]
[1728713306020,3.4275,145.92,145.9,4.98369923]
[1728713306323,3.4275,145.92,145.91,4.98369923]
[1728713311019,11.8675,145.92,145.91,4.98369923]
[1728713313720,3.4275,145.92,145.91,4.98369923]
[1728713322722,3.4276,145.91,145.88,8.44]
[1728713323032,3.4276,145.91,145.89,4.98458335]
[1728713323628,3.4276,145.91,145.9,4.98458335]
[1728713324319,3.4276,145.91,145.88,11.8683]
[1728713324527,3.4276,145.91,145.9,4.98434545]
[1728713326230,3.4276,145.91,145.88,11.8683]
[1728713326433,3.4276,145.91,145.9,4.98415311]
[1728713330136,3.4276,145.91,145.88,11.8683]
[1728713330637,3.4276,145.91,145.89,4.98332237]
[1728713330943,3.4276,145.91,145.9,4.98332237]
[1728713332548,8.44,145.93,145.9,4.98332237]
[1728713332847,3.4275,145.92,145.88,11.8683]
[1728713333045,3.4275,145.92,145.89,4.98253025]
[1728713333242,8.44,145.93,145.9,4.98253025]
[1728713333243,3.4276,145.91,145.9,4.98253025]
[1728713334348,3.4276,145.91,145.88,11.8683]
[1728713334549,3.4276,145.91,145.89,4.98206427]
[1728713334748,3.4276,145.91,145.9,4.98206427]
[1728713337848,3.4276,145.91,145.88,11.8683]
[1728713338054,3.4276,145.91,145.9,4.98156743]
[1728713338247,3.4276,145.91,145.89,4.98156743]
[1728713338548,3.4276,145.91,145.9,4.98156743]
[1728713340847,8.44,145.92,145.87,3.4285]
[1728713341051,3.428,145.9,145.88,4.98141427]
[1728713341246,3.428,145.9,145.89,4.98141427]
[1728713341451,11.868,145.9,145.89,4.98141427]
[1728713341750,8.44,145.9,145.85,0.12502]
[1728713342049,11.8685,145.88,145.86,4.98360506]
[1728713342253,11.8685,145.88,145.87,4.98360506]
[1728713344063,11.8685,145.88,145.85,0.12502]
[1728713344447,11.8685,145.88,145.87,4.9821501]
[1728713344658,11.8685,145.88,145.87,4.98134766]
[1728713345350,11.8685,145.88,145.85,0.12502]
[1728713345554,11.8685,145.88,145.86,4.98063078]
[1728713345756,11.8685,145.88,145.85,0.12502]
[1728713345958,3.4285,145.87,145.86,4.9806308]
[1728713347663,3.4285,145.87,145.86,4.97942647]
[1728713349161,8.44,145.9,145.86,13.41942647]
[1728713349355,8.44,145.9,145.86,8.44]
[1728713349859,3.4282,145.89,145.86,8.44]
[1728713357465,3.4282,145.89,145.85,11.99402]
[1728713357658,3.4282,145.89,145.86,4.97856626]
[1728713357967,3.4282,145.89,145.85,11.99402]
[1728713358367,3.4282,145.89,145.86,4.97856384]
[1728713358662,3.4282,145.89,145.85,11.99402]
[1728713358869,3.4282,145.89,145.86,4.97869542]
[1728713359064,3.4282,145.89,145.85,11.99402]
[1728713359261,3.4282,145.89,145.86,4.97869215]
[1728713359460,3.4282,145.89,145.85,11.99402]
[1728713359667,3.4282,145.89,145.86,4.97856083]
[1728713359963,3.4282,145.89,145.85,11.99402]
[1728713360166,3.4282,145.89,145.86,4.97856254]
[1728713360360,3.4282,145.89,145.85,11.99402]
[1728713360564,3.4282,145.89,145.86,4.97853844]
[1728713360765,3.4282,145.89,145.85,11.99402]
[1728713360966,3.4282,145.89,145.86,4.97853844]
[1728713361170,3.4282,145.89,145.85,11.99402]
[1728713361669,3.4282,145.89,145.86,4.97865345]
[1728713361872,3.4282,145.89,145.85,11.99402]
[1728713362059,3.4282,145.89,145.86,4.97845463]
[1728713362257,3.4282,145.89,145.85,11.99402]
[1728713362465,3.4282,145.89,145.86,4.97848411]
[1728713362664,3.4282,145.89,145.85,11.99402]
[1728713362865,3.4282,145.89,145.86,4.97848411]
[1728713363064,3.4282,145.89,145.85,11.99402]
[1728713363261,3.4282,145.89,145.86,4.97904088]
[1728713363466,3.4282,145.89,145.85,11.99402]
[1728713363666,3.4282,145.89,145.86,4.97913434]
[1728713363868,3.4282,145.89,145.85,11.99402]
[1728713364067,3.4282,145.89,145.86,4.97943945]
[1728713364267,3.4282,145.89,145.85,11.99402]
[1728713364577,11.8682,145.89,145.86,4.97971563]
[1728713364764,11.8682,145.89,145.85,11.99402]
[1728713364965,11.8682,145.89,145.86,4.97971563]
[1728713365167,11.8682,145.89,145.85,11.99402]
[1728713365375,11.8682,145.89,145.86,4.97993102]
[1728713365668,11.8682,145.89,145.85,11.99402]
[1728713365862,11.8682,145.89,145.86,4.97998109]
[1728713366065,11.8682,145.89,145.85,11.99402]
[1728713366266,11.8682,145.89,145.86,4.98021111]
[1728713366468,11.8682,145.89,145.85,11.99402]
[1728713366662,11.8682,145.89,145.86,4.98045312]
[1728713366862,11.8682,145.89,145.85,11.99402]
[1728713367070,11.8682,145.89,145.86,4.98047773]
[1728713367269,11.8682,145.89,145.85,11.99402]
[1728713367470,11.8682,145.89,145.86,4.98074371]
[1728713367670,3.4283,145.88,145.85,3.55402]
[1728713367873,3.4283,145.88,145.86,4.98079599]
[1728713368072,3.4283,145.88,145.85,3.55402]
[1728713368276,3.4283,145.88,145.86,4.98122029]
[1728713368470,3.4283,145.88,145.85,3.55402]
[1728713368676,3.4283,145.88,145.86,4.98122029]
[1728713368877,3.4283,145.88,145.85,3.55402]
[1728713369076,3.4283,145.88,145.86,4.98119574]
[1728713369378,3.4283,145.88,145.85,3.55402]
[1728713369579,3.4283,145.88,145.86,4.98143551]
[1728713369770,3.4283,145.88,145.85,3.55402]
[1728713369966,3.4283,145.88,145.86,4.98140975]
[1728713370177,3.4283,145.88,145.85,3.55402]
[1728713370379,3.4283,145.88,145.86,4.98121592]
[1728713370679,3.4283,145.88,145.85,3.55402]
[1728713370871,3.4283,145.88,145.86,4.98129671]
[1728713371070,3.4283,145.88,145.85,3.55402]
[1728713371275,3.4283,145.88,145.86,4.98165962]
[1728713371474,3.4283,145.88,145.85,3.55402]
[1728713371475,8.44,145.88,145.85,0.12502]
[1728713371670,3.4288,145.86,145.85,0.12502]
[1728713371871,3.4288,145.86,145.85,5.10721424]
[1728713373376,11.8688,145.86,145.85,5.10721424]
[1728713375174,11.8688,145.86,145.85,0.12502]
[1728713375379,11.8688,145.86,145.85,5.10907358]
[1728713375880,11.8688,145.86,145.85,10.0929167]
[1728713376073,11.8688,145.86,145.85,5.10886312]
[1728713378672,3.4288,145.86,145.85,5.10886312]
[1728713378879,3.4288,145.86,145.85,0.12502]
[1728713379071,3.4288,145.86,145.85,5.11038515]
[1728713382481,3.4288,145.86,145.85,0.12502]
[1728713382684,3.4288,145.86,145.85,5.11066673]
[1728713383975,8.44,145.87,145.85,5.11066673]
[1728713384178,11.8686,145.87,145.85,0.12502]
[1728713384777,11.8686,145.87,145.86,4.98606373]
[1728713385275,11.8686,145.87,145.85,0.12502]
[1728713386282,11.8686,145.87,145.86,4.98780307]
[1728713386480,11.8686,145.87,145.85,0.12502]
[1728713386679,11.8686,145.87,145.86,4.98780307]
[1728713389482,11.8686,145.87,145.85,0.12502]
[1728713390476,8.44,145.87,145.85,0.12502]
[1728713390678,3.4288,145.86,145.85,0.12502]
[1728713392185,8.44,145.87,145.85,0.12502]
[1728713392386,3.4286,145.87,145.85,0.12502]
[1728713397995,8.44,145.88,145.85,0.12502]
[1728713398189,3.4288,145.86,145.85,0.12502]
[1728713401494,11.8688,145.86,145.85,0.12502]
[1728713403496,3.4288,145.86,145.85,0.12502]
[1728713403995,85.59537679,145.9,145.85,8.56502]
[1728713403996,3.4285,145.88,145.85,8.56502]
[1728713405396,3.4285,145.88,145.86,4.98824769]
[1728713405598,3.4285,145.88,145.85,8.56502]
[1728713405786,3.4285,145.88,145.86,4.98888917]
[1728713405990,3.4285,145.88,145.85,8.56502]
[1728713406190,3.4285,145.88,145.86,4.9888646]
[1728713406390,3.4285,145.88,145.85,8.56502]
[1728713406600,3.4285,145.88,145.86,4.98957412]
[1728713406801,3.4285,145.88,145.85,8.56502]
[1728713407004,3.4285,145.88,145.86,4.99000394]
[1728713407192,3.4285,145.88,145.85,8.56502]
[1728713407392,3.4285,145.88,145.86,4.99110554]
[1728713407593,3.4285,145.88,145.85,8.56502]
[1728713407895,3.4285,145.88,145.86,4.99187917]
[1728713408093,3.4285,145.88,145.85,8.56502]
[1728713408494,3.4285,145.88,145.86,4.99313438]
[1728713408896,3.4285,145.88,145.85,8.56502]
[1728713409096,3.4285,145.88,145.86,4.99295537]
[1728713409296,3.4285,145.88,145.85,8.56502]
[1728713409493,3.4285,145.88,145.86,4.99280943]
[1728713409694,3.4285,145.88,145.85,8.56502]
[1728713409899,3.4285,145.88,145.86,4.99280943]
[1728713410098,3.4285,145.88,145.85,8.56502]
[1728713410301,3.4285,145.88,145.86,4.99272441]
[1728713410503,3.4285,145.88,145.85,8.56502]
[1728713410798,3.4285,145.88,145.86,4.99413181]
[1728713410999,3.4285,145.88,145.87,4.99413181]
[1728713411699,8.44,145.89,145.87,4.99413181]
[1728713411898,11.8682,145.89,145.85,11.99402]
[1728713412098,8.44,145.89,145.86,4.99363978]
[1728713412299,8.44,145.89,145.87,4.99363978]
[1728713412598,8.44,145.89,145.85,11.99402]
[1728713412790,8.44,145.89,145.86,4.99366098]
[1728713412996,8.44,145.89,145.87,4.99366098]
[1728713413199,8.44,145.89,145.85,11.99402]
[1728713413499,3.4283,145.88,145.86,4.99364914]
[1728713413699,3.4283,145.88,145.87,4.99364914]
[1728713415305,3.4283,145.88,145.85,11.99402]
[1728713415499,3.4283,145.88,145.87,4.9936261]
[1728713420609,11.8683,145.88,145.87,4.9936261]
[1728713425602,3.4286,145.87,145.85,0.12502]
[1728713426004,3.4286,145.87,145.86,4.99370632]
[1728713429015,3.4286,145.87,145.85,0.12502]
[1728713429215,3.4286,145.87,145.86,4.99481662]
[1728713429511,3.4286,145.87,145.85,0.12502]
[1728713429706,3.4286,145.87,145.86,4.99516658]
[1728713432410,11.8686,145.87,145.86,4.99516658]
[1728713432611,8.44,145.87,145.85,0.12502]
[1728713432906,3.4288,145.86,145.85,0.12502]
[1728713433106,3.4288,145.86,145.85,5.12278838]
[1728713436218,3.4288,145.86,145.85,0.12502]
[1728713436416,3.4288,145.86,145.85,5.12292612]
[1728713439321,3.4288,145.86,145.85,0.12502]
[1728713443141,11.8688,145.86,145.85,0.12502]
[1728713456143,81.43387679,145.9,145.85,0.12502]
[1728713456345,0.12518,145.99,145.86,13.42870924]
[1728713456547,0.12518,145.99,145.87,4.98870924]
[1728713456548,8.44,145.93,145.87,4.98870924]
[1728713456748,8.44,145.93,145.88,8.44]
[1728713457045,11.8673,145.93,145.89,4.98870924]
[1728713457250,11.8673,145.93,145.88,11.8682]
[1728713457548,11.8673,145.93,145.89,4.98356867]
[1728713457744,11.8673,145.93,145.88,8.44]
[1728713457948,11.8673,145.93,145.89,4.98349387]
[1728713458144,11.8673,145.93,145.88,8.44]
[1728713458344,11.8673,145.93,145.89,4.98240708]
[1728713458540,11.8673,145.93,145.88,8.44]
[1728713458748,11.8673,145.93,145.89,4.98224262]
[1728713458945,11.8673,145.93,145.88,8.44]
[1728713459148,11.8673,145.93,145.89,4.98223647]
[1728713459349,11.8673,145.93,145.88,8.44]
[1728713459539,11.8673,145.93,145.89,4.98138624]
[1728713459739,3.4282,145.89,145.85,0.12502]
[1728713459939,8.44,145.86,145.85,0.12502]
[1728713460451,11.8688,145.86,145.85,0.12502]
[1728713463152,3.4295,145.83,145.79,0.12502]
[1728713463345,8.44,145.82,145.8,4.98815138]
[1728713463546,8.44,145.82,145.81,4.98815138]
[1728713465153,8.44,145.82,145.79,0.12502]
[1728713465345,8.44,145.8,145.73,0.12502]
[1728713465548,8.44,145.76,145.73,0.12502]
[1728713466151,11.8712,145.76,145.73,0.12502]
[1728713466357,8.44,145.74,145.73,0.12502]
[1728713467151,8.44,145.78,145.73,0.12502]
[1728713468444,3.4309,145.77,145.73,3.55682]
[1728713468643,8.44,145.76,145.73,3.55682]
[1728713470052,8.44,145.76,145.73,0.12502]
[1728713471353,11.8713,145.76,145.73,0.12502]
[1728713475658,3.4313,145.76,145.73,3.55682]
[1728713477250,11.8706,145.79,145.74,11.8714]
[1728713477451,8.44,145.79,145.74,8.44]
[1728713478453,8.44,145.79,145.75,3.4313]
[1728713478654,8.44,145.79,145.75,11.8713]
[1728713479364,11.8704,145.79,145.76,3.4311]
[1728713480052,3.4302,145.8,145.77,1.3645]
[1728713481862,95.16796682,145.81,145.77,1.3645]
[1728713482060,8.44,145.82,145.78,3.4306]
[1728713482859,11.8698,145.82,145.78,3.4306]
[1728713483356,11.8698,145.82,145.77,9.8045]
[1728713483559,11.8698,145.82,145.77,13.2353]
[1728713484863,8.44,145.82,145.77,13.2353]
[1728713485064,3.4299,145.81,145.77,13.2353]
[1728713488167,8.44,145.82,145.77,9.8045]
[1728713488369,0.12502,145.85,145.78,8.44]
[1728713488570,0.12502,145.85,145.8,8.44]
[1728713488865,8.56502,145.85,145.8,8.44]
[1728713489071,3.4294,145.84,145.8,11.87]
[1728713489268,3.4294,145.84,145.8,8.44]
[1728713489670,3.4294,145.84,145.79,8.44]
[1728713489671,8.44,145.84,145.79,8.44]
[1728713489979,3.4295,145.83,145.79,11.8703]
[1728713490862,8.44,145.82,145.78,11.1537]
[1728713491064,11.8697,145.82,145.78,6.1443]
[1728713493169,8.44,145.82,145.78,6.1443]
[1728713493466,3.4299,145.81,145.78,6.1443]
[1728713493865,3.4303,145.8,145.78,2.7137]
[1728713494268,8.44,145.82,145.78,2.7137]
[1728713494462,3.4306,145.79,145.77,9.8045]
[1728713494667,3.4306,145.79,145.77,1.3645]
[1728713504583,8.44,145.81,145.75,11.8713]
[1728713505266,3.4306,145.79,145.75,11.8713]
[1728713505466,8.44,145.81,145.75,11.8713]
[1728713506377,3.4306,145.79,145.75,11.8713]
[1728713508175,3.4306,145.78,145.75,11.8713]
[1728713514881,8.44,145.81,145.75,11.8713]
[1728713514882,3.4303,145.8,145.77,3.4308]
[1728713515278,3.4303,145.8,145.77,11.8708]
[1728713518479,11.87,145.81,145.78,3.4306]
[1728713520882,11.87,145.81,145.77,8.44]
[1728713521185,11.87,145.81,145.77,11.8708]
[1728713526090,3.4298,145.82,145.77,8.44]
[1728713526395,3.4298,145.82,145.78,8.44]
[1728713527492,3.4298,145.82,145.79,3.4303]
[1728713530885,3.4296,145.83,145.8,11.8701]
[1728713531287,0.12502,145.85,145.81,8.44]
[1728713531493,3.4294,145.84,145.81,15.31300462]
[1728713532585,8.56502,145.85,145.81,15.31300462]
[1728713532790,11.99412,145.85,145.81,15.31300462]
[1728713536202,8.44,145.84,145.74,61.00980189]
[1728713536408,11.8697,145.83,145.78,8.44]
[1728713536704,8.44,145.83,145.78,8.44]
[1728713537304,8.44,145.82,145.78,3.4305]
[1728713538308,3.4301,145.81,145.78,3.4305]
[1728713539708,3.4301,145.81,145.78,11.8705]
[1728713540107,3.4301,145.81,145.78,3.4305]
[1728713541303,8.44,145.82,145.77,8.44]
[1728713541509,8.44,145.82,145.76,11.8709]
[1728713541510,3.4302,145.8,145.76,11.8709]
[1728713545706,0.12502,145.85,145.76,3.4309]
[1728713546012,3.4304,145.79,145.76,3.4309]
[1728713551405,3.4304,145.79,145.77,8.44]
[1728713552513,0.12502,145.85,145.78,11.8706]
[1728713552718,0.12502,145.85,145.8,8.44]
[1728713552719,8.56502,145.85,145.8,8.44]
[1728713553409,3.4298,145.82,145.79,8.44]
[1728713553607,3.4298,145.82,145.79,9.7901]
[1728713558827,3.4298,145.82,145.79,13.2205]
[1728713559724,3.4296,145.83,145.79,13.2205]
[1728713559926,3.4296,145.83,145.8,11.8988819]
[1728713560123,3.4296,145.83,145.8,15.3289819]
[1728713560627,3.55412,145.85,145.82,8.44]
[1728713560830,3.55412,145.85,145.79,1.3501]
[1728713560831,0.12502,145.85,145.83,8.44]
[1728713561029,0.12502,145.85,145.83,11.92701684]
[1728713562131,0.12502,145.85,145.83,8.44]
[1728713580239,0.12502,145.85,145.82,15.38269312]
[1728713581352,3.55402,145.85,145.82,6.94269312]
[1728713582852,0.12502,145.85,145.81,1.4289]
[1728713583044,8.56502,145.85,145.8,13.36197018]
[1728713584452,3.4296,145.83,145.8,16.79207018]
[1728713584951,3.4296,145.83,145.8,8.35207018]
[1728713595751,3.4296,145.83,145.81,8.44]
[1728713602660,0.12502,145.85,145.83,3.4294]
[1728713602861,0.12502,145.85,145.83,11.8694]
[1728713603956,0.12502,145.85,145.84,3.4292]
[1728713604271,0.12502,145.85,145.83,8.44]
[1728713605559,0.12502,145.85,145.83,11.8694]
[1728713608470,0.12502,145.85,145.82,11.8696]
[1728713609364,3.55402,145.85,145.82,11.8696]
[1728713611367,3.55402,145.85,145.83,8.44]
[1728713618982,3.4292,145.84,145.8,6.29527018]
[1728713619275,3.4292,145.84,145.8,14.73527018]
[1728713619467,3.4292,145.84,145.8,18.16527018]
[1728713621774,3.4292,145.84,145.81,3.4299]
[1728713623372,3.4292,145.84,145.81,11.8699]
[1728713623978,3.4292,145.84,145.82,9.48]
[1728713631777,3.4292,145.84,145.81,12.9099]
[1728713634585,0.12502,145.85,145.83,9.48]
[1728713635686,3.55402,145.85,145.83,9.48]
[1728713636588,0.12502,145.85,145.83,9.48]
[1728713638490,0.12502,145.85,145.83,12.9094]
[1728713639584,0.12502,145.85,145.84,9.48]
[1728713639782,0.12502,145.85,145.84,12.9092]
[1728713644682,0.12502,145.85,145.8,6.29527018]
[1728713644882,0.12502,145.85,145.82,3.4296]
[1728713645594,3.55402,145.85,145.82,3.4296]
[1728713649292,3.55402,145.85,145.82,12.9096]
[1728713649493,3.55402,145.85,145.82,3.4296]
[1728713652510,3.55402,145.85,145.82,12.9096]
[1728713656913,3.55402,145.85,145.82,3.4296]
[1728713657112,3.4292,145.84,145.82,3.4296]
[1728713660519,0.12502,145.85,145.82,3.4296]
[1728713660711,3.55412,145.85,145.82,3.4296]
[1728713661820,3.55412,145.85,145.82,12.9096]
[1728713665620,3.55412,145.85,145.82,9.48]
[1728713666616,0.12502,145.85,145.8,6.29527018]
[1728713666820,3.4296,145.83,145.8,6.29527018]
[1728713667021,3.4296,145.83,145.8,15.77527018]
[1728713668121,3.4296,145.83,145.8,19.20527018]
[1728713669819,0.12502,145.85,145.8,6.29527018]
[1728713670024,3.4295,145.83,145.8,19.20537018]
[1728713671526,3.4294,145.84,145.8,19.20537018]
[1728713675023,3.4295,145.83,145.8,19.20537018]
[1728713677626,9.60502,145.85,145.81,9.48]
[1728713677627,3.4294,145.84,145.81,9.48]
[1728713678929,3.4295,145.83,145.81,9.48]
[1728713679732,3.4295,145.83,145.8,19.20537018]
[1728713682429,3.4295,145.83,145.8,15.77527018]
[1728713683331,3.4295,145.83,145.8,19.20537018]
[1728713684038,0.12502,145.85,145.81,3.4298]
[1728713684335,0.12502,145.85,145.8,15.77527018]
[1728713685338,3.4294,145.84,145.8,19.20537018]
[1728713696849,3.4295,145.83,145.8,19.20537018]
[1728713704850,0.12502,145.85,145.82,9.48]
[1728713705048,0.12502,145.85,145.84,9.48]
[1728713706544,0.12502,145.85,145.83,9.48]
[1728713706752,0.12502,145.85,145.82,9.48]
[1728713707065,0.12502,145.85,145.82,12.9096]
[1728713707357,3.55402,145.85,145.81,9.48]
[1728713707546,9.60502,145.85,145.8,6.29527018]
[1728713708147,3.4293,145.84,145.8,9.72537018]
[1728713710244,0.12502,145.85,145.8,15.77527018]
[1728713710448,0.12502,145.85,145.82,3.4295]
[1728713710649,0.12502,145.85,145.8,15.77527018]
[1728713711355,3.55422,145.85,145.81,3.4299]
[1728713714750,3.4292,145.84,145.81,12.9099]
[1728713715555,3.55402,145.85,145.81,12.9099]
[1728713717057,0.12502,145.85,145.81,12.9099]
[1728713717255,3.4292,145.84,145.81,12.9099]
[1728713718459,3.4292,145.84,145.81,3.4299]
[1728713719258,3.4292,145.84,145.8,6.29527018]
[1728713719454,3.4292,145.84,145.8,9.72537018]
[1728713726161,9.60502,145.85,145.8,8.31107018]
[1728713726358,3.4295,145.83,145.8,8.31107018]
[1728713730161,3.4295,145.83,145.8,17.79107018]
[1728713730355,0.12502,145.85,145.8,14.36097018]
[1728713730660,3.4293,145.84,145.81,3.4299]
[1728713735360,3.4296,145.83,145.8,8.31107018]
[1728713738366,3.55402,145.85,145.82,3.4296]
[1728713740867,3.55402,145.85,145.81,3.4298]
[1728713743069,13.03402,145.85,145.81,3.4298]
[1728713743571,3.4293,145.84,145.81,3.4298]
[1728713746968,9.48,145.83,145.8,3.50767018]
[1728713747275,0.12502,145.85,145.79,1.3501]
[1728713747276,9.48,145.81,145.79,1.3501]
[1728713748174,3.4302,145.8,145.79,1.3501]
[1728713748376,9.48,145.81,145.79,1.3501]
[1728713748576,9.48,145.81,145.8,3.46560827]
[1728713749069,12.91,145.81,145.8,3.46560827]
[1728713749269,9.48,145.81,145.76,57.76883394]
[1728713749462,0.12502,145.85,145.76,57.76883394]
[1728713749463,9.48,145.8,145.76,57.76883394]
[1728713750166,12.9108,145.78,145.75,1.3975]
[1728713750768,3.4309,145.77,145.74,2.7147]
[1728713750970,9.48,145.78,145.74,2.7147]
[1728713751274,3.4309,145.77,145.74,2.7147]
[1728713751471,3.4309,145.77,145.74,1.3717]
[1728713753775,3.4309,145.77,145.74,4.8033]
[1728713753975,3.4309,145.77,145.74,14.2833]
[1728713759383,3.4307,145.78,145.75,3.4313]
[1728713760182,3.4305,145.79,145.76,3.4309]
[1728713761383,0.12502,145.85,145.76,9.48]
[1728713761689,3.43,145.81,145.76,9.48]
[1728713762288,3.43,145.81,145.77,3.4308]
[1728713763185,83.52126699,145.83,145.76,9.48]
[1728713763385,3.4297,145.82,145.79,3.4304]
[1728713764284,3.4297,145.82,145.77,9.48]
[1728713764285,3.4297,145.82,145.78,3.4305]
[1728713765383,0.12502,145.85,145.79,9.48]
[1728713765590,0.12502,145.85,145.8,3.34817396]
[1728713765783,9.60502,145.85,145.8,3.34817396]
[1728713766090,3.4294,145.84,145.8,6.77827396]
[1728713767585,3.4294,145.84,145.81,3.4299]
[1728713767785,13.03412,145.85,145.81,3.4299]
[1728713769283,3.4292,145.84,145.81,3.4299]
[1728713774492,13.03412,145.85,145.81,3.4299]
[1728713774691,13.03412,145.85,145.81,4.8]
[1728713775492,3.55412,145.85,145.81,4.8]
[1728713777194,13.03412,145.85,145.81,4.8]
[1728713781701,3.55412,145.85,145.81,1.3701]
[1728713781895,3.55412,145.85,145.82,3.4297]